bitfinex/quotes_SOLUSD_20250704
["timestamp","ask_amount","ask_price","bid_price","bid_amount"]
[1751618728905,6.35857255,150.43,150.4,0.2]
[1751618729403,6.64805212,150.42,150.4,0.2]
[1751618729580,13.00662467,150.42,150.4,0.2]
[1751618729781,6.64805212,150.42,150.4,0.2]
[1751618729982,13.00662467,150.42,150.4,0.2]
[1751618733707,6.35857255,150.42,150.4,0.2]
[1751618734095,13.00666437,150.42,150.4,0.2]
[1751618735207,6.64809182,150.42,150.4,0.2]
[1751618735899,13.00666437,150.42,150.4,0.2]
[1751618740715,6.64809182,150.42,150.4,0.2]
[1751618740901,6.6471683,150.44,150.4,0.2]
[1751618741095,6.35857255,150.43,150.4,0.2]
[1751618741622,13.00651803,150.43,150.4,0.2]
[1751618742113,6.35857255,150.42,150.4,0.2]
[1751618742510,6.64806373,150.42,150.4,0.2]
[1751618744506,13.00663628,150.42,150.4,0.2]
[1751618745019,6.35857255,150.41,150.4,0.2]
[1751618747020,18.64964886,150.45,150.4,0.2]
[1751618747205,6.35857255,150.41,150.4,0.2]
[1751618749903,6.64849411,150.41,150.4,0.2]
[1751618750105,13.00706666,150.41,150.4,0.2]
[1751618751814,10.72870998,150.41,150.4,0.2]
[1751618762310,29.37835884,150.41,150.4,0.2]
[1751618762899,29.37835884,150.41,150.35,0.2]
[1751618762900,18.64964886,150.4,150.35,0.2]
[1751618763105,4.08021587,150.37,150.35,0.2]
[1751618764239,6.65070497,150.36,150.35,0.2]
[1751618766749,10.73092084,150.36,150.35,0.2]
[1751618767040,29.3805697,150.36,150.35,0.2]
[1751618767213,29.3805697,150.36,150.35,1e-08]
[1751618768621,44.64964886,150.34,150.33,1e-08]
[1751618768818,48.72986473,150.34,150.33,1e-08]
[1751618769914,51.03324334,150.34,150.33,1e-08]
[1751618770412,44.64964886,150.34,150.33,1e-08]
[1751618770617,57.68483306,150.34,150.33,1e-08]
[1751618771233,31.68483306,150.34,150.33,1e-08]
[1751618771534,18.64964886,150.3,150.28,0.2]
[1751618771718,25.03324334,150.29,150.28,0.2]
[1751618772836,31.68704598,150.29,150.28,0.2]
[1751618775333,18.64964886,150.28,150.26,0.2]
[1751618775538,25.03324334,150.27,150.26,0.2]
[1751618776416,6.65380264,150.29,150.26,0.2]
[1751618776619,13.03739712,150.29,150.26,0.2]
[1751618777242,6.38359448,150.28,150.26,0.2]
[1751618778129,6.65380264,150.29,150.26,0.2]
[1751618778435,6.38359448,150.28,150.26,0.2]
[1751618778810,6.65468822,150.27,150.26,0.2]
[1751618779437,13.03739712,150.29,150.26,0.2]
[1751618780940,146.4,150.33,150.26,1.7614]
[1751618781138,6.65247472,150.32,150.3,6.38359448]
[1751618781349,6.38359448,150.32,150.26,27.7614]
[1751618781524,6.38359448,150.32,150.28,6.38359448]
[1751618782544,6.38359448,150.29,150.26,1.7614]
[1751618783039,6.38359448,150.28,150.26,1.7614]
[1751618783417,6.38359448,150.29,150.26,1.7614]
[1751618784119,6.6542454,150.28,150.26,1.7614]
[1751618784624,6.6542454,150.28,150.26,8.14499448]
[1751618785023,6.65335994,150.3,150.26,1.7614]
[1751618785349,6.65335994,150.3,150.27,6.38359448]
[1751618787441,6.38359448,150.29,150.26,1.7614]
[1751618788123,16.63339986,150.3,150.26,1.7614]
[1751618788322,23.01699434,150.3,150.26,8.14499448]
[1751618788548,6.38359448,150.29,150.26,1.7614]
[1751618790251,16.63339986,150.3,150.26,1.7614]
[1751618790549,6.38359448,150.29,150.26,1.7614]
[1751618790734,6.6542454,150.28,150.26,1.7614]
[1751618794721,6.6542454,150.28,150.26,0.2]
[1751618795038,13.03783988,150.28,150.26,0.2]
[1751618795242,6.38359448,150.27,150.26,0.2]
[1751618795548,25.03324334,150.27,150.26,0.2]
[1751618796053,31.68793156,150.27,150.26,0.2]
[1751618799550,25.30433708,150.27,150.26,0.2]
[1751618799845,31.68793156,150.27,150.26,0.2]
[1751618802045,25.30433708,150.27,150.26,0.2]
[1751618802253,31.68793156,150.27,150.26,0.2]
[1751618807857,6.65468822,150.27,150.26,0.2]
[1751618814578,146.4,150.31,150.26,6.58359448]
[1751618814747,6.65352562,150.3,150.27,6.38359448]
[1751618814941,6.65352562,150.3,150.26,0.2]
[1751618815154,6.65352562,150.3,150.27,6.38359448]
[1751618815651,153.05311121,150.31,150.26,0.2]
[1751618816272,153.05311121,150.31,150.28,6.38359448]
[1751618816646,159.43670569,150.31,150.27,6.38359448]
[1751618816847,6.38359448,150.29,150.26,0.2]
[1751618817067,6.38359448,150.28,150.26,0.2]
[1751618817452,6.38359448,150.29,150.26,0.2]
[1751618817655,25.03324334,150.3,150.26,0.2]
[1751618817951,25.03324334,150.3,150.26,6.58359448]
[1751618818270,6.65335994,150.3,150.27,6.38359448]
[1751618818955,6.65335994,150.3,150.26,0.2]
[1751618819170,6.65335994,150.3,150.27,6.38359448]
[1751618822181,6.65335994,150.3,150.26,0.2]
[1751618822182,6.65335994,150.3,150.26,6.58359448]
[1751618822969,6.65335994,150.3,150.26,0.2]
[1751618823274,6.65335994,150.3,150.26,6.58359448]
[1751618825173,6.65335994,150.3,150.26,0.2]
[1751618825365,13.03695442,150.3,150.26,6.58359448]
[1751618826575,6.65335994,150.3,150.26,6.58359448]
[1751618827479,6.6542454,150.28,150.26,0.2]
[1751618829287,29.67035428,150.3,150.26,0.2]
[1751618829665,29.67035428,150.3,150.26,6.58359448]
[1751618830658,23.2867598,150.3,150.26,6.58359448]
[1751618834677,23.2867598,150.3,150.27,6.38359448]
[1751618839806,23.2867598,150.3,150.28,6.38359448]
[1751618840374,23.2867598,150.3,150.27,6.38359448]
[1751618841882,23.2867598,150.3,150.26,0.2]
[1751618842192,23.2867598,150.3,150.27,6.38359448]
[1751618842773,23.2867598,150.3,150.26,0.2]
[1751618842965,29.67035428,150.3,150.26,6.58359448]
[1751618843171,29.67035428,150.3,150.26,0.2]
[1751618843378,29.67035428,150.3,150.26,6.58359448]
[1751618845296,23.2867598,150.3,150.26,6.58359448]
[1751618845673,23.2867598,150.3,150.27,6.38359448]
[1751618846492,23.2867598,150.3,150.26,0.2]
[1751618846794,23.2867598,150.3,150.26,6.58359448]
[1751618847097,23.2867598,150.3,150.26,0.2]
[1751618847293,23.2867598,150.3,150.27,6.38359448]
[1751618849098,23.2867598,150.3,150.26,0.2]
[1751618849278,23.2867598,150.3,150.27,6.38359448]
[1751618855906,23.2867598,150.3,150.27,4.0853706]
[1751618857400,23.2867598,150.3,150.26,4.2853706]
[1751618859514,22.73501946,150.29,150.24,4.0853706]
[1751618859694,18.64964886,150.29,150.25,4.0853706]
[1751618860497,6.6542454,150.28,150.25,4.0853706]
[1751618862399,6.6542454,150.28,150.26,4.0853706]
[1751618864713,6.65158972,150.34,150.33,4.0853706]
[1751618865910,6.65158972,150.34,150.33,6.37773616]
[1751618869427,6.65158972,150.34,150.32,6.37773616]
[1751618871227,6.65158972,150.34,150.31,6.37773616]
[1751618871393,29.6583002,150.34,150.3,6.37773616]
[1751618874018,23.28056404,150.34,150.3,6.37773616]
[1751618876521,23.28056404,150.34,150.31,6.37773616]
[1751618878328,23.28056404,150.34,150.27,7.18]
[1751618878329,23.28056404,150.34,150.3,6.37773616]
[1751618879509,29.6583002,150.34,150.3,6.37773616]
[1751618880015,23.28056404,150.34,150.3,6.37773616]
[1751618880198,23.28056404,150.34,150.29,6.37773616]
[1751618880199,25.02738502,150.33,150.29,6.37773616]
[1751618880613,6.37773616,150.32,150.28,6.37773616]
[1751618882206,6.6529173,150.31,150.28,6.37773616]
[1751618882406,23.28521056,150.31,150.28,6.37773616]
[1751618884240,16.63229326,150.31,150.29,6.37773616]
[1751618886606,6.65247472,150.32,150.3,6.37773616]
[1751618887015,6.65247472,150.32,150.31,6.37773616]
[1751618887717,16.63014232,150.33,150.31,6.37773616]
[1751618887921,23.28217451,150.33,150.31,6.37773616]
[1751618888516,23.28217451,150.33,150.3,6.37773616]
[1751618889922,18.64964886,150.32,150.29,6.37773616]
[1751618892120,6.6529173,150.31,150.25,26.0]
[1751618892307,6.6529173,150.31,150.29,6.37773616]
[1751618893332,23.28521056,150.31,150.25,26.0]
[1751618893536,23.28521056,150.31,150.29,6.37773616]
[1751618894423,23.28521056,150.31,150.28,6.37773616]
[1751618894623,23.28521056,150.31,150.3,6.37773616]
[1751618894624,6.6529173,150.31,150.3,6.37773616]
[1751618895430,23.28160283,150.34,150.3,6.37773616]
[1751618895616,23.28160283,150.34,150.31,6.37773616]
[1751618899528,29.65933899,150.34,150.3,6.37773616]
[1751618901241,29.65933899,150.34,150.26,6.65483311]
[1751618901411,29.65933899,150.34,150.3,6.37773616]
[1751618901938,29.65933899,150.34,150.26,6.65483311]
[1751618902231,29.65933899,150.34,150.3,6.37773616]
[1751618903850,27.36507115,150.34,150.3,4.08346832]
[1751618907828,23.28160283,150.34,150.3,4.08346832]
[1751618908139,27.36507115,150.34,150.3,4.08346832]
[1751618910419,27.36507115,150.34,150.26,6.65483311]
[1751618910618,27.36507115,150.34,150.3,4.08346832]
[1751618913126,23.28160283,150.34,150.3,4.08346832]
[1751618913327,27.36507115,150.34,150.3,4.08346832]
[1751618913641,27.36507115,150.34,150.27,6.6545851]
[1751618913831,27.36507115,150.34,150.3,4.08346832]
[1751618914454,6.85132194,150.35,150.27,14.7026851]
[1751618914753,10.93479026,150.35,150.31,4.08346832]
[1751618915538,27.56265856,150.35,150.31,4.08346832]
[1751618915745,27.56265856,150.35,150.3,4.08346832]
[1751618917543,4.08346832,150.34,150.3,4.08346832]
[1751618918555,4.08346832,150.33,150.29,4.08346832]
[1751618919051,4.08346832,150.33,150.26,26.0]
[1751618919052,4.08346832,150.32,150.28,4.08346832]
[1751618919832,6.6529173,150.31,150.28,4.08346832]
[1751618920147,4.08346832,150.3,150.26,4.08346832]
[1751618920333,4.08346832,150.3,150.25,7.16]
[1751618920648,4.08346832,150.3,150.26,4.08346832]
[1751618922540,6.65380264,150.29,150.26,4.08346832]
[1751618922738,6.65380264,150.29,150.27,4.08346832]
[1751618923751,6.65335994,150.3,150.27,4.08346832]
[1751618925336,6.65335994,150.3,150.23,48.01898367]
[1751618925535,6.65335994,150.3,150.27,4.08346832]
[1751618925743,16.63229326,150.31,150.24,16.33387328]
[1751618925946,16.63229326,150.31,150.28,4.08346832]
[1751618926170,16.63229326,150.31,150.24,16.33387328]
[1751618926372,16.63229326,150.31,150.28,4.08346832]
[1751618927062,23.28521056,150.31,150.28,4.08346832]
[1751618929280,16.63229326,150.31,150.28,4.08346832]
[1751618930549,23.28521056,150.31,150.28,4.08346832]
[1751618931962,23.28521056,150.31,150.24,22.98989031]
[1751618932165,23.28521056,150.31,150.28,4.08346832]
[1751618937776,16.63229326,150.31,150.28,4.08346832]
[1751618940467,4.08346832,150.3,150.23,41.3626]
[1751618940670,4.08346832,150.28,150.23,38.83676832]
[1751618940967,4.08346832,150.28,150.23,12.83676832]
[1751618942149,10.73815654,150.27,150.24,4.08346832]
[1751618943170,10.73815654,150.27,150.22,4.08346832]
[1751618943171,27.3748771,150.27,150.22,4.08346832]
[1751618943368,4.08346832,150.26,150.22,4.08346832]
[1751618943666,4.08346832,150.26,150.2,26.1]
[1751618943870,4.08346832,150.26,150.22,4.08346832]
[1751618944659,23.29140878,150.27,150.22,4.08346832]
[1751618944858,4.08346832,150.26,150.22,4.08346832]
[1751618945260,4.08346832,150.27,150.22,4.08346832]
[1751618945461,4.08346832,150.27,150.23,2.49124034]
[1751618945663,4.08346832,150.27,150.24,2.49124034]
[1751618945972,4.08346832,150.28,150.25,2.49124034]
[1751618946172,4.08346832,150.28,150.26,2.49124034]
[1751618946371,4.08346832,150.28,150.27,2.49124034]
[1751618947572,10.73771372,150.28,150.27,2.49124034]
[1751618948470,29.38736258,150.28,150.27,2.49124034]
[1751618949787,46.0229761,150.28,150.27,2.49223965]
[1751618950357,46.0229761,150.28,150.22,4.08346832]
[1751618950557,4.08346832,150.26,150.22,4.08346832]
[1751618951176,4.08346832,150.25,150.21,4.08346832]
[1751618951366,18.64964886,150.27,150.21,4.08346832]
[1751618951564,4.08346832,150.25,150.21,4.08346832]
[1751618951769,4.08346832,150.26,150.22,4.08346832]
[1751618953989,6.65557404,150.25,150.22,4.08346832]
[1751618954172,20.72138347,150.26,150.22,4.08346832]
[1751618955376,6.65557404,150.25,150.22,4.08346832]
[1751618956685,23.29450914,150.25,150.2,0.1]
[1751618956863,23.29450914,150.25,150.22,4.08346832]
[1751618957066,23.29450914,150.25,150.21,4.08346832]
[1751618957368,27.37797746,150.25,150.21,4.08346832]
[1751618957780,23.29450914,150.25,150.21,4.08346832]
[1751618957978,27.37797746,150.25,150.21,4.08346832]
[1751618958664,23.29450914,150.25,150.2,0.1]
[1751618958864,4.08346832,150.25,150.21,4.08346832]
[1751618959586,22.73311718,150.26,150.22,4.08346832]
[1751618959763,23.29140878,150.27,150.23,4.08346832]
[1751618959965,27.3748771,150.27,150.23,4.08346832]
[1751618961283,27.3748771,150.27,150.2,0.1]
[1751618961484,27.3748771,150.27,150.23,4.08346832]
[1751618961984,4.08346832,150.25,150.2,0.1]
[1751618962283,4.08346832,150.23,150.2,0.1]
[1751618962469,4.08346832,150.24,150.2,0.1]
[1751618962669,4.08346832,150.24,150.2,4.18346832]
[1751618963005,4.08346832,150.25,150.21,4.08346832]
[1751618963214,6.65601703,150.24,150.21,4.08346832]
[1751618963580,6.65601703,150.24,150.2,0.1]
[1751618963581,6.65601703,150.24,150.2,4.18346832]
[1751618964602,10.73948535,150.24,150.2,4.18346832]
[1751618965684,27.37952794,150.24,150.2,4.18346832]
[1751618965883,4.08346832,150.23,150.2,0.1]
[1751618966089,4.08346832,150.22,150.2,0.1]
[1751618966589,4.08346832,150.21,150.2,0.1]
[1751618967814,6.39088068,150.21,150.2,0.1]
[1751618968178,16.64115023,150.23,150.2,0.1]
[1751618968482,6.39088068,150.21,150.2,0.1]
[1751618968878,13.04822706,150.21,150.2,0.1]
[1751618969687,6.65734638,150.21,150.2,0.1]
[1751618970828,6.6569032,150.22,150.2,0.1]
[1751618974050,34.1712,150.27,150.21,6.39088068]
[1751618974051,25.04052954,150.27,150.21,6.39088068]
[1751618974358,25.04052954,150.27,150.23,6.39088068]
[1751618974507,48.33193832,150.27,150.2,0.1]
[1751618974709,48.33193832,150.27,150.23,6.39088068]
[1751618975613,13.0455689,150.27,150.23,6.39088068]
[1751618976517,6.65468822,150.27,150.23,6.39088068]
[1751618976721,6.65468822,150.27,150.24,6.39088068]
[1751618977238,6.65468822,150.27,150.23,6.39088068]
[1751618977541,6.65468822,150.27,150.21,6.65723735]
[1751618978026,6.65468822,150.27,150.24,6.39088068]
[1751618981621,6.65335994,150.3,150.26,6.39088068]
[1751618981832,6.65335994,150.3,150.27,6.39088068]
[1751618982014,18.64964886,150.33,150.29,6.39088068]
[1751618982212,18.64964886,150.33,150.3,6.39088068]
[1751618983037,25.30168105,150.33,150.3,6.39088068]
[1751618983538,6.65203219,150.33,150.3,6.39088068]
[1751618983916,13.04291287,150.33,150.29,6.39088068]
[1751618984543,6.65203219,150.33,150.29,6.39088068]
[1751618986330,13.04291287,150.33,150.29,6.39088068]
[1751618987039,6.65203219,150.33,150.29,6.39088068]
[1751618987225,13.04291287,150.33,150.29,6.39088068]
[1751618988439,6.65203219,150.33,150.29,6.39088068]
[1751618989754,13.04291287,150.33,150.29,6.39088068]
[1751618993445,6.85173123,150.34,150.31,6.39088068]
[1751618995263,0.2,150.34,150.32,6.39088068]
[1751618996165,6.85159059,150.34,150.32,6.39088068]
[1751618996461,6.39088068,150.33,150.26,32.65481909]
[1751618996760,6.39088068,150.32,150.28,6.39088068]
[1751618998263,6.6529173,150.31,150.28,6.39088068]
[1751618998632,6.6529173,150.31,150.26,26.0]
[1751618998932,13.04379798,150.31,150.27,6.39088068]
[1751619005170,13.04379798,150.31,150.24,8.7465]
[1751619005171,6.39088068,150.29,150.24,8.7465]
[1751619005369,6.39088068,150.28,150.24,13.47088068]
[1751619005766,6.39088068,150.25,150.2,1.6593]
[1751619005967,6.39088068,150.23,150.2,0.1]
[1751619007974,6.39088068,150.24,150.2,0.1]
[1751619008187,6.65646009,150.23,150.2,0.1]
[1751619008479,6.39088068,150.21,150.2,0.1]
[1751619010778,13.04822706,150.21,150.2,0.1]
[1751619011886,6.65734638,150.21,150.2,0.1]
[1751619012972,6.6569032,150.22,150.2,0.1]
[1751619015573,6.6569032,150.22,150.2,6.49088068]
[1751619015798,6.6569032,150.22,150.2,0.1]
[1751619016095,13.04778388,150.22,150.2,0.1]
[1751619016674,6.39088068,150.21,150.2,0.1]
[1751619017292,6.39088068,150.25,150.2,6.49088068]
[1751619017492,6.39088068,150.25,150.21,6.39088068]
[1751619017797,6.39088068,150.24,150.2,6.49088068]
[1751619018571,6.65646009,150.23,150.2,6.49088068]
[1751619019699,6.39088068,150.22,150.2,0.1]
[1751619020573,6.65646009,150.23,150.2,0.1]
[1751619020799,6.65734638,150.21,150.2,0.1]
[1751619020980,31.69787592,150.21,150.2,0.1]
[1751619021776,6.65734638,150.21,150.2,0.1]
[1751619021978,13.04822706,150.21,150.2,0.1]
[1751619023208,13.04822706,150.21,150.18,1e-08]
[1751619023209,18.64964886,150.2,150.18,1e-08]
[1751619023407,25.04052954,150.19,150.18,1e-08]
[1751619024704,31.69876244,150.19,150.18,1e-08]
[1751619028606,48.3443447,150.19,150.15,0.1]
[1751619028921,6.39088068,150.16,150.15,0.1]
[1751619030714,6.65911966,150.17,150.15,0.1]
[1751619030923,6.39088068,150.16,150.15,0.1]
[1751619032022,13.05044381,150.16,150.15,0.1]
[1751619035116,6.65956313,150.16,150.15,0.1]
[1751619035324,13.05044381,150.16,150.15,0.1]
[1751619042621,31.70009267,150.16,150.15,0.1]
[1751619047616,6.65956313,150.16,150.15,0.1]
[1751619049634,6.65911966,150.17,150.15,0.1]
[1751619051530,13.05000034,150.17,150.15,0.1]
[1751619054222,6.65911966,150.17,150.15,0.1]
[1751619055121,13.05000034,150.17,150.15,0.1]
[1751619058610,6.39088068,150.16,150.15,0.1]
[1751619060317,13.05044381,150.16,150.15,0.1]
[1751619064825,25.30876852,150.17,150.15,0.1]
[1751619065032,6.39088068,150.16,150.15,0.1]
[1751619067230,13.05044381,150.16,150.15,0.1]
[1751619074140,6.65956313,150.16,150.15,0.1]
[1751619076634,6.6582329,150.19,150.15,6.49088068]
[1751619076940,6.6582329,150.19,150.15,0.1]
[1751619077144,6.6582329,150.19,150.16,6.39088068]
[1751619077640,6.6582329,150.19,150.15,0.1]
[1751619077849,6.6582329,150.19,150.16,6.39088068]
[1751619081649,6.6582329,150.19,150.15,0.1]
[1751619081850,6.39088068,150.17,150.15,0.1]
[1751619082528,6.39088068,150.16,150.15,0.1]
[1751619083751,13.05044381,150.16,150.15,0.1]
[1751619084737,6.65956313,150.16,150.15,0.1]
[1751619087143,6.65926325,150.17,150.15,0.1]
[1751619087451,13.04867029,150.2,150.16,6.39088068]
[1751619088859,6.39088068,150.19,150.15,6.49088068]
[1751619089450,6.65867625,150.18,150.15,6.49088068]
[1751619089845,6.65867625,150.18,150.15,0.1]
[1751619090050,6.39088068,150.16,150.15,0.1]
[1751619094347,13.05044381,150.16,150.15,0.1]
[1751619099667,6.39088068,150.16,150.15,0.1]
[1751619099844,25.04052954,150.17,150.15,0.1]
[1751619102563,6.65956313,150.16,150.15,0.1]
[1751619107849,6.65911966,150.17,150.15,0.1]
[1751619108776,23.30536688,150.18,150.15,0.1]
[1751619109659,29.69624756,150.18,150.15,0.1]
[1751619111475,6.39088068,150.16,150.15,0.1]
[1751619112565,6.39088068,150.17,150.15,0.1]
[1751619113566,6.65956313,150.16,150.15,0.1]
[1751619119374,6.65867625,150.18,150.15,0.1]
[1751619122353,13.05213566,150.18,150.15,0.1]
[1751619122771,29.69882629,150.18,150.15,0.1]
[1751619124679,6.39345941,150.17,150.15,0.1]
[1751619124880,29.69882629,150.18,150.15,0.1]
[1751619125977,6.65867625,150.18,150.15,6.49345941]
[1751619126281,6.65867625,150.18,150.16,8.88917857]
[1751619126486,6.65867625,150.18,150.16,6.39345941]
[1751619126781,6.6582329,150.19,150.16,6.39345941]
[1751619126980,146.4,150.22,150.17,6.39345941]
[1751619127177,6.6569032,150.22,150.2,6.39345941]
[1751619127374,6.6569032,150.22,150.19,6.39345941]
[1751619127555,6.6569032,150.22,150.15,8.29446269]
[1751619127755,6.6569032,150.22,150.19,6.39345941]
[1751619128675,0.2,150.25,150.2,6.39345941]
[1751619128873,0.2,150.25,150.16,6.39345941]
[1751619129071,6.59345941,150.25,150.21,6.39345941]
[1751619129665,6.65601703,150.24,150.21,6.39345941]
[1751619130987,6.65601703,150.24,150.17,6.65911966]
[1751619131187,6.65601703,150.24,150.2,6.39345941]
[1751619133594,6.65601703,150.24,150.17,6.65911966]
[1751619133805,6.65601703,150.24,150.2,6.39345941]
[1751619134089,13.04947644,150.24,150.2,6.39345941]
[1751619135389,18.64964886,150.2,150.15,7.14]
[1751619135707,6.39345941,150.16,150.15,0.1]
[1751619136492,25.04310827,150.16,150.15,0.1]
[1751619136700,51.04310827,150.16,150.15,0.1]
[1751619137300,57.7026714,150.16,150.15,0.1]
[1751619147397,6.65956313,150.16,150.15,0.1]
[1751619147701,13.05302254,150.16,150.15,0.1]
[1751619149196,31.7026714,150.16,150.15,0.1]
[1751619150913,31.7026714,150.16,150.11,0.1]
[1751619150914,44.64964886,150.12,150.11,0.1]
[1751619151101,18.64964886,150.11,150.1,0.1]
[1751619151593,25.04310827,150.11,150.1,0.1]
[1751619152404,25.04310827,150.11,150.1,1e-08]
[1751619152925,31.70488963,150.11,150.1,1e-08]
[1751619156111,13.05524077,150.11,150.1,1e-08]
[1751619156397,6.66178136,150.11,150.1,1e-08]
[1751619156614,31.70488963,150.11,150.1,1e-08]
[1751619165907,25.31143022,150.11,150.1,1e-08]
[1751619166116,31.70488963,150.11,150.1,1e-08]
[1751619175536,25.31143022,150.11,150.1,1e-08]
[1751619175741,31.70488963,150.11,150.1,1e-08]
[1751619181740,31.70488963,150.11,150.08,0.1]
[1751619181741,18.64964886,150.1,150.08,1e-08]
[1751619181924,32.39345941,150.09,150.08,1e-08]
[1751619182130,93.41484284,150.09,150.08,1e-08]
[1751619182646,100.0775119,150.09,150.08,1e-08]
[1751619184756,106.47097131,150.09,150.08,1e-08]
[1751619185453,18.64964886,150.04,149.99,0.1]
[1751619185642,6.39345941,150.03,149.99,6.49345941]
[1751619186539,32.39345941,150.05,150.0,6.39345941]
[1751619186737,6.66488936,150.04,150.0,6.39345941]
[1751619186959,6.66488936,150.04,149.99,0.1]
[1751619187163,6.66488936,150.04,150.0,6.39345941]
[1751619188939,6.66488936,150.04,150.01,6.39345941]
[1751619189545,13.05834877,150.04,149.99,0.1]
[1751619189745,13.05834877,150.04,150.0,6.39345941]
[1751619190258,6.66488936,150.04,150.0,6.39345941]
[1751619190638,13.05834877,150.04,150.0,6.39345941]
[1751619190839,6.66488936,150.04,150.01,6.39345941]
[1751619193545,13.05790164,150.06,150.02,6.39345941]
[1751619195370,6.66444223,150.06,150.02,6.39345941]
[1751619196050,6.66444223,150.06,150.03,6.39345941]
[1751619198469,6.66444223,150.06,150.02,6.39345941]
[1751619199266,6.66444223,150.06,150.03,6.39345941]
[1751619199653,6.66444223,150.06,150.02,6.39345941]
[1751619200059,13.05790164,150.06,150.02,6.39345941]
[1751619201468,13.05790164,150.06,149.99,6.76702735]
[1751619201656,13.05790164,150.06,150.02,6.39345941]
[1751619201861,6.66444223,150.06,150.02,6.39345941]
[1751619202576,6.66444223,150.06,150.0,6.66663254]
[1751619202776,6.66444223,150.06,150.02,6.39345941]
[1751619208279,6.66444223,150.06,150.03,6.39345941]
[1751619208468,6.663557,150.07,150.04,6.39345941]
[1751619212365,6.663557,150.07,150.05,6.39345941]
[1751619212568,146.4,150.08,150.06,6.39345941]
[1751619212780,6.66295585,150.09,150.07,6.39345941]
[1751619213780,6.66178136,150.11,150.08,6.39345941]
[1751619214767,6.66178136,150.11,150.07,6.39345941]
[1751619216877,6.39345941,150.1,150.06,6.39345941]
[1751619217673,6.39345941,150.1,150.03,1.538]
[1751619217872,6.39345941,150.1,150.06,6.39345941]
[1751619218891,6.66266906,150.09,150.06,6.39345941]
[1751619219090,13.05612847,150.09,150.03,1.538]
[1751619219281,13.05612847,150.09,150.04,6.39345941]
[1751619219477,13.05612847,150.09,150.03,1.538]
[1751619219788,6.39345941,150.06,150.02,6.39345941]
[1751619220788,6.39345941,150.07,150.03,6.39345941]
[1751619220991,6.66400106,150.06,150.03,6.39345941]
[1751619224303,18.64964886,150.08,150.03,6.39345941]
[1751619224480,25.04310827,150.08,150.04,6.39345941]
[1751619225498,6.663557,150.07,150.03,6.39345941]
[1751619225695,13.05701641,150.07,150.0,38.88457225]
[1751619225994,13.05701641,150.07,150.03,6.39345941]
[1751619227901,13.05701641,150.07,150.02,6.39345941]
[1751619228099,6.663557,150.07,150.02,6.39345941]
[1751619228279,13.05701641,150.07,150.02,6.39345941]
[1751619229003,13.05701641,150.07,150.03,6.39345941]
[1751619232910,29.71590892,150.07,150.0,32.2181]
[1751619233097,23.32244951,150.07,150.01,6.39345941]
[1751619233404,6.39345941,150.06,150.01,6.39345941]
[1751619234197,6.66444518,150.05,150.01,6.39345941]
[1751619234711,13.05790459,150.05,150.01,6.39345941]
[1751619235009,6.66444518,150.05,150.01,6.39345941]
[1751619235394,13.05790459,150.05,150.01,6.39345941]
[1751619235699,6.39345941,150.04,150.0,6.39345941]
[1751619236209,6.66533359,150.03,150.0,6.39345941]
[1751619239020,6.66400106,150.06,150.02,6.39345941]
[1751619239188,6.66400106,150.06,150.03,6.39345941]
[1751619240696,13.05746047,150.06,149.99,13.80668512]
[1751619240886,13.05746047,150.06,150.02,6.39345941]
[1751619243511,29.71746313,150.06,150.01,6.39345941]
[1751619243718,6.66488936,150.04,150.0,6.39345941]
[1751619244318,6.66488936,150.04,150.01,6.39345941]
[1751619245920,6.66444518,150.05,149.99,13.80694351]
[1751619246217,6.66444518,150.05,150.02,6.39345941]
[1751619247319,6.66444518,150.05,150.03,6.39345941]
[1751619247816,13.05746047,150.06,150.02,6.39345941]
[1751619249216,6.66400106,150.06,150.02,6.39345941]
[1751619249422,6.66400106,150.06,150.0,6.66666609]
[1751619249722,6.66400106,150.06,150.04,6.39345941]
[1751619250097,6.66400106,150.06,150.01,6.66614312]
[1751619250098,153.06286949,150.09,150.05,6.39345941]
[1751619250297,153.06286949,150.09,150.07,6.39345941]
[1751619250493,6.66286949,150.09,150.07,6.39345941]
[1751619250903,6.66233705,150.1,150.04,26.0]
[1751619251198,6.66233705,150.1,150.08,6.39345941]
[1751619251393,6.66233705,150.1,150.09,6.39345941]
[1751619251606,41.89550815,150.13,150.09,6.39345941]
[1751619251607,6.66133759,150.12,150.09,6.39345941]
[1751619255201,6.66133759,150.12,150.1,6.39345941]
[1751619256921,6.66133759,150.12,150.09,6.39345941]
[1751619259830,6.66133759,150.12,150.08,6.39345941]